bitfinex/quotes_ETHUSD_20251117
["timestamp","ask_amount","ask_price","bid_price","bid_amount"]
[1763398138787,0.6518,3114.0,3113.3,0.001]
[1763398140201,0.877104,3113.9,3113.3,0.001]
[1763398140553,0.4716,3113.8,3113.3,0.001]
[1763398140896,0.1802,3114.0,3113.3,0.85932403]
[1763398141102,0.4716,3113.9,3113.3,0.85932403]
[1763398141255,0.405504,3113.8,3113.4,0.85832403]
[1763398141493,0.405504,3113.8,3113.3,0.001]
[1763398141494,0.405504,3113.8,3113.3,0.85932403]
[1763398141647,0.4716,3113.9,3113.3,0.001]
[1763398141648,0.405504,3113.9,3113.3,0.001]
[1763398141980,0.1802,3114.0,3113.3,0.85932403]
[1763398142154,0.4955332,3113.9,3113.3,0.85932403]
[1763398142353,0.4955332,3113.9,3113.3,0.001]
[1763398142548,0.405504,3113.8,3113.3,0.001]
[1763398142755,0.0239332,3113.7,3113.3,0.001]
[1763398143077,0.405504,3113.6,3113.3,0.001]
[1763398143386,0.1802,3114.0,3113.3,0.001]
[1763398143387,0.0239332,3113.9,3113.3,0.001]
[1763398143560,0.6518,3114.0,3113.3,0.001]
[1763398143763,0.1802,3114.0,3113.4,0.85832403]
[1763398144092,0.1802,3114.3,3113.7,0.85832403]
[1763398144396,0.0012,3114.6,3114.5,0.1827]
[1763398144686,0.0012,3114.6,3114.5,1.72060788]
[1763398144858,0.0012,3114.6,3114.2,0.1827]
[1763398145065,0.0012,3114.6,3114.5,0.4813]
[1763398145267,0.0012,3114.6,3114.5,1.72006157]
[1763398145469,0.0012,3114.6,3114.4,0.86015004]
[1763398145663,0.0012,3114.6,3114.5,0.86015004]
[1763398145964,0.0012,3114.6,3113.8,0.4994]
[1763398145965,0.0251332,3114.6,3113.8,0.86015004]
[1763398146166,0.0012,3114.6,3113.8,0.86015004]
[1763398146372,0.0012,3114.6,3113.7,0.86015004]
[1763398146373,0.1802,3113.9,3113.7,0.86015004]
[1763398146567,0.1802,3113.9,3113.5,0.86015004]
[1763398147272,0.4607,3113.8,3113.4,0.86015004]
[1763398147862,0.1802,3113.9,3113.4,0.86015004]
[1763398148069,0.1802,3113.9,3113.4,0.85163004]
[1763398148070,0.6409,3113.9,3113.4,0.85163004]
[1763398148750,0.4607,3113.8,3113.4,0.85163004]
[1763398149363,0.405504,3113.7,3113.4,0.85163004]
[1763398149653,0.405504,3113.7,3113.4,0.001]
[1763398149852,0.4846332,3113.6,3113.4,0.001]
[1763398150049,0.4607,3113.6,3113.4,0.001]
[1763398150791,0.4607,3113.6,3113.0,1.14774412]
[1763398150792,0.405504,3113.5,3113.0,0.001]
[1763398151002,0.405504,3113.3,3113.0,0.001]
[1763398151293,0.58282366,3113.3,3113.0,0.001]
[1763398151481,0.0239332,3113.7,3113.0,0.001]
[1763398151789,0.1802,3113.9,3113.0,0.001]
[1763398151956,0.8901372,3113.8,3113.0,0.001]
[1763398152156,0.866204,3113.8,3113.0,0.001]
[1763398152352,0.405504,3113.6,3113.0,0.001]
[1763398152558,0.0239332,3113.5,3113.0,0.001]
[1763398152803,0.405504,3113.3,3113.0,0.001]
[1763398153315,0.405504,3113.1,3113.0,0.001]
[1763398153510,0.866204,3113.1,3113.0,0.001]
[1763398155102,0.865404,3113.1,3113.0,0.001]
[1763398156307,1.36769264,3113.5,3113.0,0.001]
[1763398156544,0.4846332,3113.4,3113.0,0.001]
[1763398156814,9.30890799,3113.1,3113.0,0.001]
[1763398156986,10.23979879,3113.1,3113.0,0.001]
[1763398157315,11.10600279,3113.1,3113.0,0.001]
[1763398158639,1.31249664,3113.0,3112.7,0.001]
[1763398158787,0.583204,3112.8,3112.7,0.001]
[1763398158992,9.89211199,3112.8,3112.7,0.001]
[1763398159188,10.93032319,3112.8,3112.7,0.001]
[1763398159395,11.42032319,3112.8,3112.7,0.001]
[1763398159590,10.93032319,3112.8,3112.7,0.001]
[1763398159922,2.12290384,3112.8,3112.7,0.001]
[1763398160127,1.08469264,3112.8,3112.7,0.001]
[1763398161127,0.90699264,3112.8,3112.7,0.001]
[1763398161308,1.31249664,3112.8,3112.7,0.001]
[1763398161506,10.20441199,3112.8,3112.7,0.001]
[1763398161909,10.20441199,3112.8,3112.6,0.001]
[1763398162106,0.405504,3111.9,3110.8,1.33434412]
[1763398162436,1.31249664,3112.4,3110.8,0.6425]
[1763398162597,1.31249664,3112.4,3110.9,0.4549]
[1763398163702,0.405504,3112.4,3111.0,1.14674412]
[1763398164059,0.0239332,3112.3,3111.0,1.14674412]
[1763398164234,0.405504,3112.4,3111.1,0.4549]
[1763398164235,0.4294372,3112.4,3111.1,0.4549]
[1763398164437,0.67794372,3112.3,3111.1,0.4549]
[1763398164613,0.405504,3112.4,3111.1,0.4549]
[1763398164809,6.35,3112.5,3111.2,1.14674412]
[1763398165015,0.405504,3112.4,3111.2,1.14674412]
[1763398165224,1.33642984,3112.4,3111.1,1.60164412]
[1763398165428,1.33642984,3112.4,3110.8,0.1876]
[1763398165429,0.405504,3112.2,3110.8,0.1876]
[1763398165738,0.6755504,3112.3,3110.3,0.1865]
[1763398165739,0.405504,3111.2,3110.3,0.1865]
[1763398165925,0.0239332,3111.1,3110.3,0.1865]
[1763398166110,0.405504,3110.9,3110.0,0.4549]
[1763398166633,0.405504,3110.9,3109.9,0.1876]
[1763398166848,0.405504,3110.9,3109.9,0.6425]
[1763398167223,0.0239332,3111.0,3109.9,0.6425]
[1763398167626,0.405504,3110.9,3109.9,0.6425]
[1763398167859,0.4294372,3110.9,3110.6,0.001]
[1763398168057,0.18264298,3111.0,3110.6,0.001]
[1763398168367,0.405504,3111.1,3110.6,0.001]
[1763398169133,0.405504,3111.3,3110.7,0.4549]
[1763398169357,0.1757,3111.6,3110.7,0.4549]
[1763398169565,0.0239332,3111.5,3110.7,0.4549]
[1763398169760,0.0239332,3111.5,3110.6,0.001]
[1763398169761,0.405504,3111.3,3110.6,0.001]
[1763398170073,1.31249664,3110.9,3110.6,0.001]
[1763398170369,1.31249664,3110.9,3110.3,0.001]
[1763398170370,0.0239332,3110.8,3110.3,0.001]
[1763398170573,9.71441199,3110.4,3110.3,0.001]
[1763398170935,10.20441199,3110.4,3110.3,0.001]
[1763398171184,11.22485319,3110.4,3110.3,0.001]
[1763398172755,1.31249664,3110.3,3108.3,0.4549]
[1763398172940,1.31249664,3109.8,3108.3,0.4549]
[1763398173142,0.405504,3109.6,3108.3,0.4549]
[1763398173447,8.42584855,3109.5,3108.3,0.4549]
[1763398173650,0.405504,3109.0,3108.0,0.6414]
[1763398174038,0.405504,3109.3,3108.1,0.4549]
[1763398174480,1.7901279,3109.4,3108.1,0.4549]
[1763398174481,0.88313526,3109.4,3108.1,0.4549]
[1763398174700,0.90699264,3110.5,3109.2,0.1865]
[1763398174853,0.21667658,3110.3,3109.2,0.1865]
[1763398175055,8.80741935,3110.2,3108.6,0.4549]
[1763398175384,8.40191535,3109.8,3108.6,0.4549]
[1763398175583,8.40191535,3109.8,3108.0,0.1865]
[1763398175584,0.0239332,3109.7,3108.1,0.4832]
[1763398175787,0.405504,3109.5,3108.1,0.4832]
[1763398176101,1.74957749,3109.6,3108.1,0.4832]
[1763398176102,0.84258485,3109.6,3108.1,0.4832]
[1763398176380,0.4294372,3109.8,3108.1,0.4832]
[1763398177084,0.9144372,3109.8,3108.1,0.4832]
[1763398177649,0.405504,3109.6,3108.1,0.4832]
[1763398177881,0.0239332,3109.5,3108.1,0.4832]
[1763398178082,0.404704,3109.8,3108.1,0.4832]
[1763398178383,0.1789,3109.9,3108.1,0.4832]
[1763398178589,0.0239332,3109.8,3108.1,0.4832]
[1763398178786,0.5089332,3109.8,3108.1,0.4832]
[1763398179282,1.41592584,3109.8,3108.1,0.4832]
[1763398179850,8.42055218,3109.5,3108.0,0.1865]
[1763398180051,0.405504,3109.3,3108.0,0.1865]
[1763398180285,0.405504,3109.3,3108.1,0.4832]
[1763398180490,0.0239332,3109.2,3108.1,0.4832]
[1763398180689,0.405504,3109.3,3108.1,0.4832]
[1763398180851,3.40791103,3110.3,3108.1,0.4832]
[1763398180852,0.90699264,3110.0,3108.1,0.4832]
[1763398181187,0.60331546,3109.8,3108.1,0.4832]
[1763398181491,0.57938226,3109.8,3108.1,0.4832]
[1763398181788,0.19781146,3109.8,3108.1,0.4832]
[1763398181951,0.405504,3109.7,3108.1,0.4832]
[1763398182153,0.0239332,3109.6,3108.1,0.4832]
[1763398182379,0.485,3109.5,3108.1,0.4832]
[1763398182555,0.405504,3109.2,3108.0,0.1865]
[1763398182754,0.90653882,3109.1,3108.0,0.1865]
[1763398182988,0.90653882,3109.1,3106.8,0.6697]
[1763398182989,0.405504,3108.0,3106.8,0.6697]
[1763398183219,8.59015218,3108.1,3106.8,0.6697]
[1763398183220,0.0239332,3107.9,3106.8,0.6697]
[1763398183426,0.64528719,3108.7,3106.8,0.6697]
[1763398183427,0.405504,3108.0,3106.9,0.51538642]
[1763398183641,0.405504,3108.3,3106.9,0.4832]
[1763398183789,0.405504,3107.9,3106.9,0.4832]
[1763398184205,0.582804,3107.9,3106.9,0.4832]
[1763398184408,0.1696,3108.6,3106.9,0.4832]
[1763398184631,0.405504,3108.5,3106.9,0.4832]
[1763398184802,0.405504,3108.6,3106.9,0.4832]
[1763398185129,0.405504,3108.6,3107.8,0.001]
[1763398185130,1.37880888,3108.6,3107.8,0.001]
[1763398185355,0.405504,3108.3,3107.8,0.001]
[1763398185550,0.0239332,3108.2,3107.8,0.001]
[1763398186713,0.1773,3107.9,3107.8,0.001]
[1763398186855,0.6067372,3107.9,3107.8,0.001]
[1763398187062,0.582804,3107.9,3107.8,0.001]
[1763398187269,0.405504,3107.9,3107.8,0.001]
[1763398187475,0.582804,3107.9,3107.8,0.001]
[1763398188235,0.405504,3108.2,3107.8,0.001]
[1763398188650,1.86380888,3108.2,3107.8,0.001]
[1763398188849,0.1773,3107.9,3107.8,0.001]
[1763398189382,1.37880888,3108.2,3107.8,0.001]
[1763398189528,8.90555218,3109.1,3108.1,0.182]
[1763398189728,0.0239332,3108.8,3107.8,0.001]
[1763398190034,0.4294372,3108.8,3107.8,0.4842]
[1763398190263,8.90555218,3108.7,3107.8,0.001]
[1763398190468,0.405504,3108.5,3107.8,0.001]
[1763398190670,0.0239332,3108.4,3107.8,0.001]
[1763398190877,0.405504,3108.5,3107.8,0.001]
[1763398191057,0.405504,3108.7,3107.8,0.001]
[1763398191640,0.0239332,3108.6,3107.8,0.001]
[1763398191836,0.405504,3108.7,3107.8,0.4842]
[1763398192275,0.485,3109.4,3107.8,0.4842]
[1763398192473,0.29860449,3109.3,3107.8,0.4842]
[1763398192700,8.6569016,3110.0,3107.8,0.4842]
[1763398192972,0.405504,3109.4,3107.8,0.4842]
[1763398193278,0.29879141,3109.4,3107.8,0.4842]
[1763398193488,0.5089332,3109.3,3107.8,0.4842]
[1763398193699,0.405504,3109.2,3107.8,0.4842]
[1763398193863,0.0239332,3109.1,3107.8,0.4842]
[1763398194842,0.405504,3109.0,3107.8,0.4842]
[1763398195177,0.32306449,3108.9,3107.8,0.4842]
[1763398195364,0.405504,3108.7,3107.8,0.001]
[1763398195684,0.0239332,3108.6,3107.8,0.001]
[1763398195859,0.405504,3108.7,3107.8,0.4842]
[1763398196256,0.0239332,3108.6,3107.8,0.4842]
[1763398196975,0.70525162,3108.7,3107.8,0.4842]
[1763398197283,0.29992584,3108.6,3107.8,0.4842]
[1763398197484,0.29992584,3108.7,3107.8,0.4842]
[1763398197803,0.405504,3109.3,3107.8,0.4842]
[1763398197950,0.32384602,3109.2,3107.8,0.4842]
[1763398198272,0.405504,3109.0,3107.8,0.4842]
[1763398198480,0.405504,3108.8,3107.8,0.4842]
[1763398198677,0.29991282,3108.7,3107.8,0.4842]
[1763398198970,0.0239332,3109.1,3107.8,0.4842]
[1763398199181,0.405504,3108.9,3107.8,0.4842]
[1763398199481,0.30013662,3108.8,3107.8,0.4842]
[1763398199780,0.4294372,3109.3,3107.9,0.16309441]
[1763398200079,0.30043244,3109.2,3108.0,0.4832]
[1763398200293,0.17387826,3109.8,3108.1,0.03217399]
[1763398200294,0.30043244,3109.1,3108.1,0.03217399]
[1763398200606,0.002,3110.3,3109.0,0.182]
[1763398200895,0.002,3110.3,3110.2,0.182]
[1763398201088,0.002,3110.3,3110.2,0.6652]
[1763398201447,0.0012,3110.3,3109.9,0.182]
[1763398201987,0.0012,3110.3,3110.0,0.4832]
[1763398202364,0.485,3110.2,3109.1,1.62811692]
[1763398202553,0.4294372,3110.1,3109.1,0.4832]
[1763398202882,0.0012,3110.3,3109.2,0.4832]
[1763398203265,0.406704,3110.3,3109.2,0.4832]
[1763398203493,0.0239332,3110.2,3109.2,0.4832]
[1763398203794,0.0012,3110.3,3109.2,0.4832]
[1763398204505,0.0012,3110.3,3110.2,0.182]
[1763398204851,0.0012,3110.3,3110.2,0.6652]
[1763398205193,0.002,3110.7,3110.2,0.6652]
[1763398205400,0.002,3111.0,3110.5,1.14491692]
[1763398205894,0.002,3111.0,3110.6,0.67009096]
[1763398206254,0.002,3111.0,3110.7,0.4649]
[1763398206714,0.1716,3112.6,3110.8,0.03214607]
[1763398206850,0.6349,3112.6,3110.9,0.4649]
[1763398207055,0.0239332,3112.5,3110.9,0.4649]
[1763398207355,0.405504,3112.4,3110.9,0.4649]
[1763398207590,0.0239332,3112.3,3110.9,0.4649]
[1763398207903,0.405504,3112.2,3110.2,0.182]
[1763398208053,0.405504,3112.0,3110.5,0.4649]
[1763398208248,0.0239332,3111.9,3110.5,0.4649]
[1763398208486,0.405504,3111.8,3110.5,0.4649]
[1763398208853,0.0239332,3111.7,3110.5,0.4649]
[1763398209054,0.868804,3111.8,3110.5,0.4649]
[1763398209255,0.405504,3111.8,3110.5,0.4649]
[1763398209890,0.0239332,3111.7,3110.5,0.4649]
[1763398210190,0.868804,3111.8,3110.5,0.4649]
[1763398210606,0.4633,3111.7,3110.5,0.4649]
[1763398210896,0.405504,3111.6,3110.2,0.182]
[1763398211095,0.405504,3111.4,3110.2,0.182]
[1763398211265,0.0239332,3111.3,3109.9,0.6595]
[1763398211452,0.405504,3111.2,3109.9,0.1946]
[1763398211658,0.0239332,3111.1,3109.9,0.1946]
[1763398211857,0.405504,3111.2,3109.9,0.1946]
[1763398211858,0.0239332,3111.2,3110.0,0.4649]
[1763398212057,0.405504,3111.6,3110.0,0.4649]
[1763398212257,0.405504,3111.6,3109.9,0.1946]
[1763398212258,0.405504,3111.4,3109.9,0.1946]
[1763398212682,0.405504,3111.2,3109.6,0.6595]
[1763398212896,0.405504,3110.8,3109.0,0.182]
[1763398213094,0.6645332,3110.7,3109.0,0.6469]
[1763398213392,1.57077376,3110.7,3109.0,0.6469]
[1763398213578,1.57077376,3110.7,3109.1,0.4649]
[1763398214481,0.405504,3110.5,3109.1,0.4649]
[1763398214682,0.0239332,3110.4,3109.1,0.4649]
[1763398215062,0.405504,3110.5,3109.1,0.4649]
[1763398215462,0.0239332,3110.5,3109.1,0.4649]
[1763398216367,0.405504,3110.3,3109.1,0.4649]
[1763398216565,0.0239332,3110.2,3109.1,0.4649]
[1763398217100,0.405504,3110.3,3109.1,0.4649]
[1763398217397,0.4633,3111.4,3110.2,0.1946]
[1763398218065,0.0239332,3111.3,3110.2,0.6595]
[1763398218265,0.0239332,3111.3,3109.7,0.4649]
[1763398218461,0.4633,3111.2,3110.0,0.1946]
[1763398218659,0.405504,3111.1,3110.0,0.1946]
[1763398219497,9.63114102,3111.8,3110.1,0.4649]
[1763398219498,0.4633,3111.6,3110.1,0.4649]
[1763398219796,0.405504,3111.5,3110.1,0.4649]
[1763398220001,0.4633,3112.1,3110.1,0.4649]
[1763398220462,0.002,3111.0,3110.1,0.4649]
[1763398220665,0.002,3111.0,3110.1,1.31384523]
[1763398220862,0.002,3111.0,3110.1,0.4649]
[1763398221063,0.002,3111.0,3110.2,0.4649]
[1763398221665,0.002,3111.0,3110.2,1.31384523]
[1763398221907,0.002,3111.0,3110.2,0.4649]
[1763398222079,0.002,3111.0,3110.3,0.4649]
[1763398222276,0.002,3111.4,3110.5,0.84894523]
[1763398222468,0.002,3111.4,3111.3,0.1946]
[1763398222664,0.002,3111.7,3111.3,0.6916409]
[1763398223002,0.002,3112.8,3111.5,2.12287938]
[1763398223163,0.002,3112.8,3112.7,0.1946]
[1763398223365,0.002,3112.8,3112.5,0.1946]
[1763398223906,0.002,3112.8,3112.6,0.4649]
[1763398224204,0.002,3112.8,3112.5,0.1946]
[1763398224421,0.0012,3112.8,3112.6,0.4649]
[1763398227616,0.0012,3112.8,3112.5,0.1946]
[1763398227925,0.0012,3112.8,3112.5,0.69]
[1763398228102,0.0012,3112.8,3112.2,0.1885]
[1763398228624,0.0012,3112.8,3112.2,0.6839]
[1763398228843,0.0012,3112.8,3112.3,0.4954]
[1763398229001,0.0012,3112.8,3112.3,1.34141778]
[1763398229190,0.002,3113.2,3112.4,0.84601778]
[1763398229529,0.002,3113.2,3113.1,0.1885]
[1763398229733,0.002,3113.2,3113.1,0.6839]
[1763398230305,0.002,3113.5,3113.1,3.15654266]
[1763398230632,0.002,3113.5,3113.3,0.90699264]
[1763398230825,0.0012,3114.6,3113.3,1.56564795]
[1763398231049,0.0012,3114.6,3114.5,0.1885]
[1763398231391,0.0012,3114.6,3114.5,0.6839]
[1763398232247,0.002,3115.3,3114.5,0.6839]
[1763398232453,0.002,3115.3,3114.6,0.4954]
[1763398234239,0.002,3115.3,3114.7,0.405504]
[1763398234575,0.002,3115.3,3114.9,0.405504]
[1763398234718,0.002,3115.3,3115.2,1.09549264]
[1763398234919,0.002,3115.3,3115.2,0.1885]
[1763398235157,0.002,3115.3,3115.2,0.6839]
[1763398235625,0.002,3115.3,3115.2,1.61798016]
[1763398235826,0.002,3115.3,3115.2,2.02348416]
[1763398236565,0.002,3116.0,3115.2,2.02348416]
[1763398236566,0.002,3116.0,3115.3,0.405504]
[1763398236732,0.002,3116.0,3115.7,0.90699264]
[1763398236928,0.002,3116.0,3115.5,0.405504]
[1763398237150,0.1841,3115.9,3115.2,0.93408016]
[1763398237368,0.002,3116.0,3115.0,0.1901]
[1763398237529,0.002,3116.0,3115.1,0.467]
[1763398240055,0.002,3115.3,3115.1,0.467]
[1763398240461,0.002,3115.3,3114.5,0.1885]
[1763398240665,0.002,3115.3,3114.5,0.6555]
[1763398241162,0.002,3115.3,3114.6,0.467]
[1763398241860,0.002,3115.3,3114.9,1.31249664]
[1763398242058,0.002,3115.3,3115.1,0.405504]
[1763398242366,0.002,3115.3,3115.2,0.467]
[1763398242561,0.002,3115.3,3115.2,0.872504]
[1763398244251,0.002,3115.7,3115.2,0.872504]
[1763398244432,0.002,3115.7,3115.6,9.96939824]
[1763398244628,0.002,3115.7,3115.6,10.96633806]
[1763398244828,0.002,3116.0,3115.8,0.405504]
[1763398245038,0.002,3116.0,3115.9,0.872504]
[1763398246670,0.482,3118.5,3116.0,0.405504]
[1763398246884,0.482,3118.5,3117.2,0.1759]
[1763398247088,0.1841,3119.0,3117.4,0.90699264]
[1763398247089,0.1797,3118.6,3117.4,0.90699264]
[1763398247261,0.6661,3119.0,3117.6,0.405504]
[1763398247464,0.1773,3120.0,3117.5,1.04684773]
[1763398247465,0.1841,3119.3,3117.9,0.90699264]
[1763398247692,0.1841,3119.3,3118.1,0.405504]
[1763398247999,0.1773,3120.0,3119.2,0.1893]
[1763398248298,0.482,3120.5,3119.3,0.467]
[1763398248299,0.1773,3120.3,3119.3,0.467]
[1763398248588,0.1773,3120.3,3118.5,1.31249664]
[1763398248750,0.482,3120.2,3118.5,1.31249664]
[1763398248948,0.482,3120.2,3118.6,0.467]
[1763398249589,0.1773,3120.3,3118.7,0.405504]
[1763398249790,0.1773,3120.3,3119.0,1.31249664]
[1763398249990,0.1773,3120.6,3119.5,0.90699264]
[1763398250149,0.482,3120.5,3119.6,0.03205539]
[1763398250356,0.482,3120.5,3119.2,0.467]
[1763398250610,0.482,3120.9,3119.2,0.467]
[1763398251293,0.482,3120.9,3119.4,0.405504]
[1763398251475,0.6661,3122.0,3120.8,0.1901]
[1763398251851,0.482,3121.9,3120.8,0.1901]
[1763398252510,0.1773,3122.7,3121.8,0.1901]
[1763398252858,0.1773,3122.7,3120.9,1.29]
[1763398252859,0.482,3122.6,3121.2,0.1901]
[1763398253149,0.482,3122.6,3120.9,9.25294048]
[1763398253150,0.5059332,3122.6,3120.9,0.467]
[1763398253356,0.5059332,3122.6,3120.0,0.1901]
[1763398253357,0.405504,3122.5,3120.5,0.467]
[1763398253580,0.6593,3122.7,3121.3,0.90699264]
[1763398253751,0.6593,3122.7,3121.4,0.92529405]
[1763398253949,0.482,3122.6,3121.4,1.11539405]
[1763398254155,0.482,3122.6,3121.4,0.92529405]
[1763398254974,0.1789,3123.2,3121.5,0.467]
[1763398255413,0.1789,3123.2,3121.6,0.405504]
[1763398255894,0.0239332,3124.9,3123.1,0.1901]
[1763398256102,0.6593,3127.0,3123.2,0.405504]
[1763398256294,0.482,3124.9,3123.2,0.872504]
[1763398256615,0.482,3124.9,3123.1,0.1901]
[1763398256976,0.482,3124.9,3123.2,0.872504]
[1763398257380,0.482,3124.9,3123.2,0.467]
[1763398257581,0.482,3124.9,3123.3,0.467]
[1763398257795,0.482,3124.9,3123.4,0.405504]
[1763398258220,0.482,3125.1,3123.5,0.467]
[1763398258389,0.482,3126.5,3123.6,0.405504]
[1763398258579,0.09083496,3128.1,3124.2,1.31249664]
[1763398258580,0.482,3125.9,3124.2,1.31249664]
[1763398258782,0.482,3125.9,3124.4,0.405504]
[1763398259003,0.482,3125.9,3123.6,0.90699264]
[1763398259004,0.0239332,3125.8,3123.6,0.90699264]
[1763398259341,0.15635858,3127.2,3123.1,0.35060021]
[1763398259342,0.405504,3125.6,3123.1,0.35060021]
[1763398259541,0.4294372,3125.6,3123.6,0.467]
[1763398259719,0.405504,3125.4,3123.6,0.467]
[1763398260031,0.482,3125.5,3123.6,0.467]
[1763398260242,0.405504,3125.3,3123.1,0.1901]
[1763398260382,0.4294372,3125.3,3123.1,0.6571]
[1763398260584,0.09999999,3127.9,3123.1,0.6571]
[1763398260585,0.482,3125.8,3123.2,0.467]
[1763398260787,0.25019086,3128.1,3124.4,0.405504]
[1763398261019,0.1773,3127.6,3125.9,0.1901]
[1763398261228,0.1773,3127.6,3126.0,0.405504]
[1763398261434,0.482,3127.5,3126.0,0.467]
[1763398261636,0.482,3127.5,3126.1,0.405504]
[1763398261838,0.482,3127.5,3126.0,0.467]
[1763398262069,0.0239332,3127.9,3126.1,0.467]
[1763398262247,0.09083496,3128.1,3126.4,0.405504]
[1763398262414,0.09083496,3128.1,3126.6,0.405504]
[1763398262617,0.57283496,3128.1,3126.6,0.405504]
[1763398262842,0.09083496,3128.1,3126.8,0.405504]
[1763398263054,0.09083496,3128.1,3128.0,0.1901]
[1763398263435,0.09083496,3128.1,3127.0,0.467]
[1763398263673,0.09083496,3128.1,3127.2,0.1901]
[1763398264167,0.1774,3130.8,3128.1,1.31249664]
[1763398264377,0.16253202,3131.9,3128.1,1.31249664]
[1763398264378,0.16253202,3131.9,3129.7,0.595604]
[1763398264656,0.16253202,3131.9,3129.8,0.405504]
[1763398264825,0.482,3131.8,3129.9,0.467]
[1763398265012,0.482,3131.8,3130.0,0.405504]
[1763398265216,0.1841,3132.0,3130.0,7.40175144]
[1763398265427,0.482,3133.0,3130.7,1.31249664]
[1763398265684,0.482,3133.0,3130.9,0.405504]
[1763398265833,0.482,3133.0,3130.1,0.78687514]
[1763398266029,6.99624744,3134.1,3130.1,0.78687514]
[1763398266030,0.09083496,3134.7,3132.9,0.1964]
[1763398266360,0.09083496,3134.7,3133.1,7.40175144]
[1763398266655,0.09083496,3134.7,3134.6,0.1964]
[1763398266867,0.09083496,3134.7,3134.6,0.6567]
[1763398267012,0.09083496,3134.7,3134.4,0.93889667]
[1763398267013,0.09083496,3134.7,3134.3,0.1964]
[1763398267218,0.09083496,3134.7,3134.6,0.405504]
[1763398267415,0.09083496,3134.7,3133.7,0.1964]
[1763398267653,0.09083496,3134.7,3133.0,0.405504]
[1763398268017,0.09083496,3134.7,3132.9,0.1964]
[1763398268217,0.09083496,3134.7,3133.0,0.4603]
[1763398268481,0.57333496,3134.7,3133.1,0.03191727]
[1763398268659,0.57333496,3134.7,3131.3,0.4825]
[1763398268660,0.57333496,3134.7,3131.8,0.4603]
[1763398268865,0.57333496,3134.7,3133.4,0.90699264]
[1763398268866,0.0239332,3134.6,3133.4,0.90699264]
[1763398269180,0.0989,3136.9,3134.6,0.1964]
[1763398269381,0.4825,3138.1,3135.5,6.99624744]
[1763398269382,0.1873,3137.9,3135.5,6.99624744]
[1763398269626,0.1873,3137.9,3135.6,1.6385092]
[1763398269907,0.0239332,3137.8,3135.6,0.69962474]
[1763398270067,0.1873,3137.9,3135.7,0.4921908]
[1763398270269,0.0239332,3137.8,3135.7,0.4603]
[1763398270475,0.1865,3137.9,3135.8,0.03188978]
[1763398270697,0.1865,3137.9,3135.7,0.17749582]
[1763398271020,0.0239332,3137.8,3134.6,0.1964]
[1763398271189,0.1865,3137.9,3134.8,6.99624744]
[1763398271511,0.1873,3138.2,3136.0,6.99624744]
[1763398271717,0.6698,3139.2,3136.8,6.99624744]
[1763398272001,0.4825,3139.5,3136.9,0.51595491]
[1763398272221,0.4825,3139.5,3137.0,0.51020106]
[1763398272515,0.1873,3140.1,3138.0,6.99624744]
[1763398272516,0.6698,3140.1,3138.0,6.99624744]
[1763398272719,0.6698,3140.1,3137.8,6.99624744]
[1763398272872,0.5064332,3140.0,3137.2,6.99624744]
[1763398273276,0.1873,3140.1,3137.8,6.99624744]
[1763398273415,0.6698,3141.0,3139.2,6.99624744]
[1763398273618,0.6698,3141.0,3139.3,1.34908039]
[1763398273848,0.6698,3141.0,3138.6,6.99624744]
[1763398273849,0.1873,3141.0,3138.6,6.99624744]
[1763398274052,0.5064332,3140.9,3138.6,0.1964]
[1763398274349,0.5064332,3140.9,3136.0,0.65295651]
[1763398274350,0.4825,3140.9,3138.7,0.4603]
[1763398274556,0.4825,3140.9,3138.7,1.36729264]
[1763398274712,0.90699264,3140.8,3137.4,0.4603]
[1763398274912,0.83857401,3140.7,3137.8,6.99624744]
[1763398275123,0.5064332,3140.6,3137.3,0.4603]
[1763398275323,0.4825,3140.6,3137.3,0.4603]
[1763398275523,0.4825,3140.6,3137.9,0.90699264]
[1763398275723,0.4825,3140.6,3137.6,0.90699264]
[1763398276249,0.002,3140.1,3138.3,0.90699264]
[1763398276451,0.002,3140.1,3138.9,0.90699264]
[1763398276672,0.002,3140.1,3138.4,0.79032401]
[1763398276673,0.4825,3140.0,3138.4,0.79032401]
[1763398277007,0.4825,3140.0,3138.1,0.4603]
[1763398277133,0.4825,3140.0,3137.4,0.4603]
[1763398277313,0.4825,3140.0,3137.0,6.99624744]
[1763398277518,0.0239332,3139.9,3137.1,1.15992474]
[1763398277831,0.4852,3139.8,3137.6,6.99624744]
[1763398278027,0.002,3140.1,3137.2,0.4992]
[1763398278028,0.002,3140.1,3138.2,6.99624744]
[1763398278240,0.002,3140.1,3137.1,0.69962474]
[1763398278241,0.002,3140.1,3138.9,0.90699264]
[1763398278527,0.002,3140.1,3139.0,0.79032401]
[1763398278732,0.002,3140.1,3139.1,0.4992]
[1763398279254,0.002,3140.1,3139.0,0.79032401]
[1763398279255,0.002,3140.1,3138.4,0.90699264]
[1763398279568,0.4852,3140.0,3138.4,0.4992]
[1763398280074,0.4852,3140.0,3137.9,6.99624744]
[1763398280219,0.0239332,3139.9,3137.8,0.1877]
[1763398280418,0.4852,3140.0,3137.9,0.4992]
[1763398280619,0.4852,3139.9,3137.9,0.4992]
[1763398280853,0.4852,3139.9,3137.4,0.4992]
[1763398281048,0.4852,3139.9,3137.6,0.90699264]
[1763398281249,0.4852,3139.9,3138.1,6.99624744]
[1763398281556,0.0239332,3139.8,3137.7,0.79032401]
[1763398281719,0.4852,3139.9,3137.7,0.79032401]
[1763398281925,0.4852,3139.8,3137.8,0.4992]